[Event "Elitserien 2019/2020, round 1-3"]
[Site "Uppsala University, Gamla torget, Uppsala, Sweden"]
[Date "2019.10.19"]
[Round "2.28"]
[White "Antonsen, Mikkel"]
[Black "Lundin, Jan"]
[Result "1/2-1/2"]
[TimeControl "90 minutes for 40 moves + 30 minutes for the rest of the game + 30 seconds per move from move one."]
[WhiteTitle "IM"]
[BlackTitle "FM"]
[WhiteFideId "1401378"]
[BlackFideId "1706896"]
[WhiteElo "2388"]
[BlackElo "2291"]

1. c4 {[%clk 01:30:55]} {[%emt 00:00:04]} e5 {[%clk 01:29:46]} {[%emt
00:01:14]} 2. Nc3 {[%clk 01:31:13]} {[%emt 00:00:11]} Nc6 {[%clk 01:30:10]}
{[%emt 00:00:06]} 3. Nf3 {[%clk 01:31:39]} {[%emt 00:00:04]} Nf6 {[%clk
01:29:54]} {[%emt 00:00:46]} 4. e4 {[%clk 01:32:00]} {[%emt 00:00:10]} d6
{[%clk 01:26:29]} {[%emt 00:03:55]} 5. d4 {[%clk 01:26:01]} {[%emt 00:06:29]}
Bg4 {[%clk 01:25:06]} {[%emt 00:01:53]} 6. d5 {[%clk 01:26:16]} {[%emt
00:00:15]} Nd4 {[%clk 01:20:47]} {[%emt 00:04:49]} 7. Be3 {[%clk 01:26:21]}
{[%emt 00:00:25]} g6 {[%clk 01:17:20]} {[%emt 00:03:57]} 8. Bxd4 {[%clk
01:16:57]} {[%emt 00:09:54]} exd4 {[%clk 01:16:16]} {[%emt 00:01:35]} 9. Qxd4
{[%clk 01:17:15]} {[%emt 00:00:11]} Bxf3 {[%clk 01:15:11]} {[%emt 00:01:35]} 10.
gxf3 {[%clk 01:17:40]} {[%emt 00:00:05]} Bg7 {[%clk 01:15:10]} {[%emt
00:00:30]} 11. Qd2 {[%clk 01:14:52]} {[%emt 00:03:19]} O-O {[%clk 01:14:12]}
{[%emt 00:01:27]} 12. Ne2 {[%clk 01:00:02]} {[%emt 00:15:20]} Nd7 {[%clk
01:09:26]} {[%emt 00:05:16]} 13. Bg2 {[%clk 00:57:12]} {[%emt 00:03:21]} Ne5
{[%clk 00:49:43]} {[%emt 00:20:14]} 14. Rc1 {[%clk 00:55:00]} {[%emt 00:02:43]}
Qh4 {[%clk 00:47:34]} {[%emt 00:02:38]} 15. f4 {[%clk 00:51:17]} {[%emt
00:04:13]} Ng4 {[%clk 00:44:51]} {[%emt 00:03:12]} 16. Ng3 {[%clk 00:47:44]}
{[%emt 00:04:03]} Rfe8 {[%clk 00:30:43]} {[%emt 00:14:38]} 17. c5 {[%clk
00:28:59]} {[%emt 00:19:15]} Bh6 {[%clk 00:26:17]} {[%emt 00:04:55]} 18. cxd6
{[%clk 00:28:14]} {[%emt 00:01:16]} cxd6 {[%clk 00:26:12]} {[%emt 00:00:34]} 19.
Rc7 {[%clk 00:24:44]} {[%emt 00:04:00]} Nf6 {[%clk 00:25:10]} {[%emt 00:01:32]}
20. O-O {[%clk 00:21:21]} {[%emt 00:03:54]} Bxf4 {[%clk 00:23:40]} {[%emt
00:01:59]} 21. Qc3 {[%clk 00:16:31]} {[%emt 00:05:21]} Re5 {[%clk 00:10:53]}
{[%emt 00:13:17]} 22. h3 {[%clk 00:11:42]} {[%emt 00:05:18]} Kg7 {[%clk
00:04:04]} {[%emt 00:07:20]} 23. Qf3 {[%clk 00:10:44]} {[%emt 00:01:28]} Rg5
{[%clk 00:03:51]} {[%emt 00:00:43]} 24. Rxb7 {[%clk 00:06:10]} {[%emt
00:05:05]} Rc8 {[%clk 00:03:24]} {[%emt 00:00:56]} 25. Rb4 {[%clk 00:03:26]}
{[%emt 00:03:13]} Rc2 {[%clk 00:02:28]} {[%emt 00:01:26]} 26. e5 {[%clk
00:03:21]} {[%emt 00:00:36]} dxe5 {[%clk 00:02:44]} {[%emt 00:00:14]} 27. d6
{[%clk 00:03:02]} {[%emt 00:00:49]} Rd2 {[%clk 00:02:18]} {[%emt 00:00:56]} 28.
Rb7 {[%clk 00:00:39]} {[%emt 00:02:54]} Rxd6 {[%clk 00:01:38]} {[%emt
00:01:40]} 29. Qb3 {[%clk 00:00:57]} {[%emt 00:00:42]} 1/2-1/2

[Event "Elitserien 2019/2020, round 1-3"]
[Site "Uppsala University, Gamla torget, Uppsala, Sweden"]
[Date "2019.10.19"]
[Round "2.29"]
[White "Ong, Kezli"]
[Black "Mauritsson, Sebastian"]
[Result "0-1"]
[TimeControl "90 minutes for 40 moves + 30 minutes for the rest of the game + 30 seconds per move from move one."]
[BlackTitle "FM"]
[WhiteFideId "1706500"]
[BlackFideId "1707892"]
[WhiteElo "2314"]
[BlackElo "2339"]

1. e4 {[%clk 01:30:49]} {[%emt 00:00:10]} c5 {[%clk 01:30:47]} {[%emt
00:00:14]} 2. Nf3 {[%clk 01:30:52]} {[%emt 00:00:27]} d6 {[%clk 01:31:03]}
{[%emt 00:00:14]} 3. Bb5+ {[%clk 01:30:51]} {[%emt 00:00:30]} Nd7 {[%clk
01:31:27]} {[%emt 00:00:06]} 4. O-O {[%clk 01:30:21]} {[%emt 00:01:01]} a6
{[%clk 01:31:48]} {[%emt 00:00:09]} 5. Bd3 {[%clk 01:29:37]} {[%emt 00:01:13]}
Ngf6 {[%clk 01:32:09]} {[%emt 00:00:09]} 6. c3 {[%clk 01:28:57]} {[%emt
00:01:10]} b5 {[%clk 01:32:24]} {[%emt 00:00:15]} 7. Bc2 {[%clk 01:24:29]}
{[%emt 00:04:58]} c4 {[%clk 01:32:44]} {[%emt 00:00:11]} 8. d4 {[%clk
01:17:48]} {[%emt 00:07:11]} cxd3 {[%clk 01:33:03]} {[%emt 00:00:11]} 9. Qxd3
{[%clk 01:17:15]} {[%emt 00:01:03]} e6 {[%clk 01:21:25]} {[%emt 00:12:08]} 10.
Bf4 {[%clk 01:02:33]} {[%emt 00:15:12]} e5 {[%clk 01:18:35]} {[%emt 00:03:20]}
11. Bg3 {[%clk 00:51:51]} {[%emt 00:11:13]} Be7 {[%clk 01:17:38]} {[%emt
00:01:26]} 12. Nbd2 {[%clk 00:39:17]} {[%emt 00:13:04]} O-O {[%clk 01:15:19]}
{[%emt 00:02:49]} 13. Qe2 {[%clk 00:38:40]} {[%emt 00:01:07]} Bb7 {[%clk
01:09:29]} {[%emt 00:06:20]} 14. a4 {[%clk 00:31:43]} {[%emt 00:07:27]} Qb6
{[%clk 00:48:39]} {[%emt 00:21:20]} 15. b4 {[%clk 00:25:54]} {[%emt 00:06:19]}
Rac8 {[%clk 00:46:46]} {[%emt 00:02:23]} 16. Ra3 {[%clk 00:22:36]} {[%emt
00:03:48]} Rfe8 {[%clk 00:34:39]} {[%emt 00:12:37]} 17. axb5 {[%clk 00:21:21]}
{[%emt 00:01:45]} axb5 {[%clk 00:34:56]} {[%emt 00:00:13]} 18. Bd3 {[%clk
00:21:23]} {[%emt 00:00:27]} Bc6 {[%clk 00:34:13]} {[%emt 00:01:14]} 19. Rfa1
{[%clk 00:20:28]} {[%emt 00:01:25]} Bf8 {[%clk 00:29:27]} {[%emt 00:05:17]} 20.
Ra6 {[%clk 00:17:10]} {[%emt 00:03:48]} Qb7 {[%clk 00:27:13]} {[%emt 00:02:43]}
21. Ra7 {[%clk 00:13:33]} {[%emt 00:04:08]} Qb6 {[%clk 00:27:19]} {[%emt
00:00:23]} 22. R1a6 {[%clk 00:09:19]} {[%emt 00:04:44]} Qd8 {[%clk 00:26:01]}
{[%emt 00:01:48]} 23. Bxb5 {[%clk 00:05:47]} {[%emt 00:04:02]} Bxb5 {[%clk
00:26:21]} {[%emt 00:00:10]} 24. Qxb5 {[%clk 00:06:16]} {[%emt 00:00:01]} Rxc3
{[%clk 00:26:15]} {[%emt 00:00:36]} 25. h3 {[%clk 00:05:46]} {[%emt 00:01:01]}
Qc8 {[%clk 00:21:57]} {[%emt 00:04:48]} 26. Kh2 {[%clk 00:03:50]} {[%emt
00:02:26]} Rc1 {[%clk 00:21:40]} {[%emt 00:00:46]} 27. Qa4 {[%emt 00:03:46]}
Qc2 {[%clk 00:20:07]} {[%emt 00:02:01]} 28. Qxc2 {[%clk 00:00:39]} {[%emt
00:00:27]} Rxc2 {[%clk 00:20:35]} {[%emt 00:00:02]} 29. Rb7 {[%clk 00:00:41]}
{[%emt 00:00:28]} d5 {[%clk 00:18:28]} {[%emt 00:02:37]} 30. Nb3 {[%clk
00:00:31]} {[%emt 00:00:40]} dxe4 {[%clk 00:18:08]} {[%emt 00:00:50]} 31. Nfd2
{[%clk 00:00:38]} {[%emt 00:00:23]} Rb8 {[%clk 00:07:36]} {[%emt 00:11:01]} 32.
Rxb8 {[%clk 00:01:03]} {[%emt 00:00:05]} Nxb8 {[%clk 00:08:04]} {[%emt
00:00:02]} 33. Ra8 {[%clk 00:01:24]} {[%emt 00:00:09]} Nfd7 {[%clk 00:07:48]}
{[%emt 00:00:46]} 34. Nxe4 {[%clk 00:00:33]} {[%emt 00:01:21]} Rc4 {[%clk
00:07:12]} {[%emt 00:01:06]} 35. Nec5 {[%clk 00:00:32]} {[%emt 00:00:31]} Rxb4
{[%clk 00:06:53]} {[%emt 00:00:49]} 36. Nxd7 {[%clk 00:00:32]} {[%emt
00:00:31]} Nxd7 {[%clk 00:07:11]} {[%emt 00:00:11]} 37. Nc1 {[%clk 00:00:31]}
{[%emt 00:00:31]} f6 {[%clk 00:06:50]} {[%emt 00:00:51]} 38. Rd8 {[%clk
00:00:37]} {[%emt 00:00:23]} Rb7 {[%clk 00:05:06]} {[%emt 00:02:15]} 39. f3
{[%clk 00:00:35]} {[%emt 00:00:33]} Kf7 {[%clk 00:04:53]} {[%emt 00:00:42]} 40.
Ne2 {[%clk 00:00:41]} {[%emt 00:00:24]} Bc5 {[%clk 00:04:06]} {[%emt 00:01:16]}
41. Nc3 {[%clk 00:28:46]} {[%emt 00:02:25]} Bb6 {[%clk 00:30:40]} {[%emt
00:03:56]} 42. Rc8 {[%clk 00:25:23]} {[%emt 00:03:53]} f5 {[%clk 00:24:15]}
{[%emt 00:06:56]} 43. Nb5 {[%clk 00:17:46]} {[%emt 00:08:08]} Bc5 {[%clk
00:08:24]} {[%emt 00:16:21]} 44. Nc3 {[%clk 00:16:05]} {[%emt 00:02:11]} Bd4
{[%clk 00:08:17]} {[%emt 00:00:38]} 45. Ne2 {[%clk 00:14:22]} {[%emt 00:02:12]}
Be3 {[%clk 00:08:31]} {[%emt 00:00:16]} 46. Nc3 {[%clk 00:12:36]} {[%emt
00:02:16]} Bd4 {[%clk 00:07:31]} {[%emt 00:01:30]} 47. Ne2 {[%clk 00:12:49]}
{[%emt 00:00:17]} Bb6 {[%clk 00:07:40]} {[%emt 00:00:21]} 48. Rc6 {[%clk
00:11:10]} {[%emt 00:02:09]} Rc7 {[%clk 00:06:48]} {[%emt 00:01:22]} 49. Rd6
{[%clk 00:11:19]} {[%emt 00:00:21]} Bc5 {[%clk 00:07:00]} {[%emt 00:00:18]} 50.
Ra6 {[%clk 00:10:19]} {[%emt 00:01:30]} Rb7 {[%clk 00:07:21]} {[%emt 00:00:09]}
51. Rc6 {[%clk 00:09:38]} {[%emt 00:01:11]} Rb2 {[%clk 00:06:10]} {[%emt
00:01:42]} 52. Nc3 {[%clk 00:07:29]} {[%emt 00:02:39]} Rb6 {[%clk 00:04:53]}
{[%emt 00:01:47]} 53. Rc7 {[%clk 00:07:09]} {[%emt 00:00:51]} Ke6 {[%clk
00:03:56]} {[%emt 00:01:27]} 54. Na4 {[%clk 00:03:19]} {[%emt 00:04:19]} Rb5
{[%clk 00:03:38]} {[%emt 00:00:48]} 55. Bxe5 {[%clk 00:01:35]} {[%emt
00:02:15]} Kxe5 {[%clk 00:02:39]} {[%emt 00:01:29]} 56. Rxd7 {[%clk 00:01:55]}
{[%emt 00:00:10]} Bd4 {[%clk 00:02:40]} {[%emt 00:00:29]} 57. Rc7 {[%clk
00:00:33]} {[%emt 00:01:51]} Kd6 {[%clk 00:02:20]} {[%emt 00:00:51]} 58. Rc1
{[%clk 00:00:32]} {[%emt 00:00:31]} Rb3 {[%clk 00:01:35]} {[%emt 00:01:14]} 59.
Rc2 {[%clk 00:00:33]} {[%emt 00:00:29]} Kd5 {[%clk 00:01:40]} {[%emt 00:00:25]}
60. Rc8 {[%clk 00:00:32]} {[%emt 00:00:32]} Ra3 {[%clk 00:01:13]} {[%emt
00:00:58]} 61. Rd8+ {[%clk 00:00:33]} {[%emt 00:00:29]} Kc4 {[%clk 00:01:23]}
{[%emt 00:00:20]} 62. Rc8+ {[%clk 00:00:34]} {[%emt 00:00:29]} Kb4 {[%clk
00:01:26]} {[%emt 00:00:27]} 63. Rf8 {[%clk 00:00:31]} {[%emt 00:00:32]} Be5+
{[%clk 00:01:01]} {[%emt 00:00:56]} 64. g3 {[%clk 00:00:32]} {[%emt 00:00:29]}
Ra2+ {[%clk 00:01:06]} {[%emt 00:00:25]} 65. Kg1 {[%clk 00:00:37]} {[%emt
00:00:26]} Rxa4 {[%clk 00:01:12]} {[%emt 00:00:24]} 66. Rxf5 {[%clk 00:00:42]}
{[%emt 00:00:25]} Bd4+ {[%clk 00:01:18]} {[%emt 00:00:24]} 67. Kf1 {[%clk
00:00:44]} {[%emt 00:00:28]} Kc3 {[%clk 00:01:39]} {[%emt 00:00:09]} 68. Rb5
{[%clk 00:00:33]} {[%emt 00:00:41]} Ra1+ {[%clk 00:01:54]} {[%emt 00:00:15]} 69.
Ke2 {[%clk 00:00:36]} {[%emt 00:00:27]} Ra2+ {[%clk 00:02:22]} {[%emt
00:00:01]} 70. Ke1 {[%clk 00:00:32]} {[%emt 00:00:35]} Rh2 {[%clk 00:01:37]}
{[%emt 00:01:15]} 71. h4 {[%clk 00:00:34]} {[%emt 00:00:29]} h6 {[%clk
00:01:25]} {[%emt 00:00:42]} 72. h5 {[%clk 00:00:31]} {[%emt 00:00:32]} Bf2+
{[%clk 00:01:17]} {[%emt 00:00:37]} 73. Ke2 {[%clk 00:00:33]} {[%emt 00:00:28]}
Bxg3+ {[%clk 00:01:37]} {[%emt 00:00:10]} 74. Ke3 {[%clk 00:01:02]} Kc4 {[%clk
00:01:25]} {[%emt 00:00:42]} 75. Rf5 {[%clk 00:00:59]} {[%emt 00:00:33]} Rh4
{[%clk 00:01:28]} {[%emt 00:00:27]} 76. f4 {[%clk 00:00:42]} {[%emt 00:00:47]}
Be1 {[%clk 00:01:31]} {[%emt 00:00:28]} 77. Ke4 {[%clk 00:00:31]} {[%emt
00:00:41]} Bc3 {[%clk 00:01:44]} {[%emt 00:00:16]} 78. Ke3 {[%clk 00:00:38]}
{[%emt 00:00:24]} Rh1 {[%clk 00:01:57]} {[%emt 00:00:17]} 79. Ke4 {[%clk
00:00:42]} {[%emt 00:00:26]} Re1 {[%clk 00:02:21]} {[%emt 00:00:06]} 80. Kf3
{[%clk 00:01:07]} {[%emt 00:00:05]} Bf6 {[%clk 00:02:42]} {[%emt 00:00:09]} 81.
Ra5 {[%clk 00:01:14]} {[%emt 00:00:23]} Ra1 {[%clk 00:03:02]} {[%emt 00:00:10]}
82. Rf5 {[%clk 00:01:05]} {[%emt 00:00:39]} Kd4 {[%clk 00:03:23]} {[%emt
00:00:10]} 83. Rb5 {[%clk 00:01:21]} {[%emt 00:00:13]} Rc1 {[%clk 00:03:23]}
{[%emt 00:00:30]} 84. Rb4+ {[%clk 00:00:48]} {[%emt 00:01:03]} Rc4 {[%clk
00:03:47]} {[%emt 00:00:07]} 85. Rb6 {[%clk 00:00:58]} {[%emt 00:00:19]} Kd5
{[%clk 00:03:52]} {[%emt 00:00:26]} 86. Ra6 {[%clk 00:01:02]} {[%emt 00:00:25]}
Rc6 {[%clk 00:03:53]} {[%emt 00:00:29]} 87. Ra5+ {[%clk 00:01:18]} {[%emt
00:00:14]} Ke6 {[%clk 00:04:11]} {[%emt 00:00:12]} 88. Kg4 {[%clk 00:01:39]}
{[%emt 00:00:09]} Bc3 {[%clk 00:04:24]} {[%emt 00:00:17]} 89. Rb5 {[%clk
00:01:48]} {[%emt 00:00:20]} Bd4 {[%clk 00:04:42]} {[%emt 00:00:12]} 90. Ra5
{[%clk 00:02:03]} {[%emt 00:00:15]} Bc5 {[%clk 00:04:36]} {[%emt 00:00:36]} 91.
Ra4 {[%clk 00:01:37]} {[%emt 00:00:55]} Bd6 {[%clk 00:04:56]} {[%emt 00:00:11]}
92. Rd4 {[%clk 00:01:01]} {[%emt 00:01:06]} Rb6 {[%clk 00:05:21]} {[%emt
00:00:06]} 93. Re4+ {[%clk 00:01:12]} {[%emt 00:00:18]} Kf6 {[%clk 00:05:23]}
{[%emt 00:00:27]} 94. Rd4 {[%clk 00:01:40]} {[%emt 00:00:02]} Be7 {[%clk
00:05:20]} {[%emt 00:00:33]} 95. Rc4 {[%clk 00:01:51]} {[%emt 00:00:19]} Rd6
{[%clk 00:04:59]} {[%emt 00:00:51]} 96. Ra4 {[%clk 00:01:59]} {[%emt 00:00:23]}
Rd1 {[%clk 00:05:16]} {[%emt 00:00:13]} 97. Ra5 {[%clk 00:01:23]} {[%emt
00:01:05]} Rg1+ {[%clk 00:04:54]} {[%emt 00:00:52]} 98. Kf3 {[%clk 00:01:50]}
{[%emt 00:00:03]} Bd6 {[%clk 00:05:13]} {[%emt 00:00:11]} 99. Ra6 {[%clk
00:00:45]} {[%emt 00:01:34]} Ke6 {[%clk 00:05:10]} {[%emt 00:00:33]} 100. Kf2
{[%clk 00:00:31]} {[%emt 00:00:44]} Rg4 {[%clk 00:05:16]} {[%emt 00:00:23]} 101.
Ke3 {[%clk 00:00:32]} {[%emt 00:00:29]} Rh4 {[%clk 00:04:57]} {[%emt 00:00:49]}
102. Ra5 {[%emt 00:00:31]} 0-1

[Event "Elitserien 2019/2020, round 1-3"]
[Site "Uppsala University, Gamla torget, Uppsala, Sweden"]
[Date "2019.10.19"]
[Round "2.30"]
[White "Kucuksari, Kaan"]
[Black "Hjelm, Niclas"]
[Result "1/2-1/2"]
[TimeControl "90 minutes for 40 moves + 30 minutes for the rest of the game + 30 seconds per move from move one."]
[WhiteTitle "FM"]
[BlackTitle "FM"]
[WhiteFideId "6380166"]
[BlackFideId "1700502"]
[WhiteElo "2319"]
[BlackElo "2309"]

1. d4 {[%clk 01:30:35]} {[%emt 00:00:24]} d5 {[%clk 01:30:47]} {[%emt
00:00:13]} 2. c4 {[%clk 01:30:59]} {[%emt 00:00:06]} c6 {[%clk 01:31:08]}
{[%emt 00:00:10]} 3. Nf3 {[%clk 01:31:25]} {[%emt 00:00:04]} Nf6 {[%clk
01:31:26]} {[%emt 00:00:11]} 4. Qb3 {[%clk 01:31:46]} {[%emt 00:00:09]} e6
{[%clk 01:28:26]} {[%emt 00:03:30]} 5. Bg5 {[%clk 01:31:40]} {[%emt 00:00:37]}
Nbd7 {[%clk 01:26:22]} {[%emt 00:02:34]} 6. Nbd2 {[%clk 01:31:45]} {[%emt
00:00:25]} Be7 {[%clk 01:21:33]} {[%emt 00:05:18]} 7. e3 {[%clk 01:30:09]}
{[%emt 00:02:06]} O-O {[%clk 01:21:47]} {[%emt 00:00:16]} 8. Bd3 {[%clk
01:29:43]} {[%emt 00:00:57]} c5 {[%clk 01:13:03]} {[%emt 00:09:14]} 9. O-O
{[%clk 01:27:39]} {[%emt 00:02:34]} cxd4 {[%clk 01:09:54]} {[%emt 00:03:38]} 10.
exd4 {[%clk 01:27:35]} {[%emt 00:00:34]} dxc4 {[%clk 01:09:41]} {[%emt
00:00:44]} 11. Nxc4 {[%clk 01:26:54]} {[%emt 00:01:11]} b6 {[%clk 01:09:20]}
{[%emt 00:00:50]} 12. Nce5 {[%clk 01:22:59]} {[%emt 00:04:26]} Bb7 {[%clk
01:05:12]} {[%emt 00:04:39]} 13. Rac1 {[%clk 01:22:14]} {[%emt 00:01:15]} Nd5
{[%clk 01:02:26]} {[%emt 00:03:16]} 14. Bxe7 {[%clk 01:14:27]} {[%emt
00:08:18]} Qxe7 {[%clk 01:02:29]} {[%emt 00:00:25]} 15. Nc6 {[%clk 01:12:13]}
{[%emt 00:02:45]} Bxc6 {[%clk 00:34:23]} {[%emt 00:28:36]} 16. Rxc6 {[%clk
01:12:41]} {[%emt 00:00:02]} Nb4 {[%clk 00:30:28]} {[%emt 00:04:24]} 17. Rc7
{[%clk 01:11:07]} {[%emt 00:02:05]} Nxd3 {[%clk 00:29:04]} {[%emt 00:01:54]} 18.
Qxd3 {[%clk 01:11:15]} {[%emt 00:00:23]} Qd6 {[%clk 00:22:54]} {[%emt
00:06:40]} 19. Rc3 {[%clk 01:10:32]} {[%emt 00:01:13]} h6 {[%clk 00:20:25]}
{[%emt 00:02:59]} 20. Rfc1 {[%clk 01:09:32]} {[%emt 00:01:30]} Rfd8 {[%clk
00:18:32]} {[%emt 00:02:23]} 21. h3 {[%clk 01:02:10]} {[%emt 00:07:51]} a6
{[%clk 00:16:14]} {[%emt 00:02:50]} 22. Qe4 {[%clk 01:00:31]} {[%emt 00:02:06]}
Nf6 {[%clk 00:11:45]} {[%emt 00:05:01]} 23. Qb7 {[%clk 00:58:30]} {[%emt
00:02:32]} Nd5 {[%clk 00:10:41]} {[%emt 00:01:34]} 24. Rc8 {[%clk 00:49:01]}
{[%emt 00:09:58]} Raxc8 {[%clk 00:08:45]} {[%emt 00:02:26]} 25. Rxc8 {[%clk
00:49:30]} {[%emt 00:00:02]} a5 {[%clk 00:07:09]} {[%emt 00:02:05]} 26. Ne5
{[%clk 00:45:34]} {[%emt 00:04:25]} Rxc8 {[%clk 00:06:19]} {[%emt 00:01:20]} 27.
Qxc8+ {[%clk 00:45:50]} {[%emt 00:00:15]} Qf8 {[%clk 00:06:34]} {[%emt
00:00:15]} 28. Qc6 {[%clk 00:42:58]} {[%emt 00:03:22]} g6 {[%clk 00:04:40]}
{[%emt 00:02:24]} 29. a3 {[%clk 00:40:29]} {[%emt 00:02:59]} Qe7 {[%clk
00:03:45]} {[%emt 00:01:25]} 30. g3 {[%clk 00:33:38]} {[%emt 00:07:21]} Kg7
{[%clk 00:04:00]} {[%emt 00:00:14]} 31. Kg2 {[%clk 00:29:24]} {[%emt 00:04:45]}
h5 {[%clk 00:04:06]} {[%emt 00:00:23]} 32. Nd7 {[%clk 00:21:23]} {[%emt
00:08:30]} Qd8 {[%clk 00:01:17]} {[%emt 00:03:21]} 33. h4 {[%clk 00:20:52]}
{[%emt 00:01:01]} Nf6 {[%clk 00:01:08]} {[%emt 00:00:39]} 34. Nxf6 {[%clk
00:17:22]} {[%emt 00:04:01]} Kxf6 {[%clk 00:01:28]} {[%emt 00:00:09]} 35. Qf3+
{[%clk 00:17:18]} {[%emt 00:00:34]} Ke7 {[%clk 00:01:43]} {[%emt 00:00:14]} 36.
Qf4 {[%clk 00:15:38]} {[%emt 00:02:09]} Qd5+ {[%clk 00:01:52]} {[%emt
00:00:23]} 37. Kg1 {[%clk 00:13:40]} {[%emt 00:02:27]} Qc4 {[%clk 00:01:41]}
{[%emt 00:00:41]} 38. Qg5+ {[%clk 00:12:47]} {[%emt 00:01:23]} Ke8 {[%clk
00:01:57]} {[%emt 00:00:15]} 39. Qf4 {[%clk 00:11:35]} {[%emt 00:01:42]} Ke7
{[%clk 00:01:20]} {[%emt 00:01:06]} 40. Qg5+ {[%clk 00:11:53]} {[%emt
00:00:13]} Ke8 {[%clk 00:01:38]} {[%emt 00:00:11]} 41. Qf4 {[%clk 00:12:20]}
{[%emt 00:00:04]} Ke7 {[%clk 00:27:06]} {[%emt 00:05:01]} 42. Qg5+ {[%clk
00:42:39]} {[%emt 00:00:11]} 1/2-1/2